Cogmind - Beta 10 @@@ ROGUE MODE // 2020.09.15 @ 23:12:18 Player: Honkmo Jones Result: Destroyed by G-34 Mercenary with Small Laser Performance ------------- Evolutions (0) 0 Regions Visited (1) 200 Robots Destroyed (17) 85 Value Destroyed (487) 487 Prototype IDs (2) 40 Alien Tech Used (0) 0 Bonus (0) 0 TOTAL SCORE: 812 Bonus ------- None Cogmind --------- Core Integrity 0/250 Matter 300/300 Energy 250/250 System Corruption 1% Temperature Cool (69) Movement Walking (120) Location -10/Materials Parts ------- > --- POWER (1) -------- Ion Engine > --- PROPULSION (2) --- Aluminum Leg Aluminum Leg > --- UTILITY (2) ------ Medium Storage Unit Core Shielding > --- WEAPON (2) ------- EM Pulse Gun Small Laser > --- INVENTORY (8) ---- Aluminum Leg Aluminum Leg Aluminum Leg Aluminum Leg Heat Sink EM Pulse Gun Small Laser Assault Rifle Peak State ------------ > --- POWER ------------ Light Ion Engine > --- PROPULSION ------- Compact Wheel Compact Wheel > --- UTILITY ---------- Small Storage Unit High-capacity Matter Pod > --- WEAPON ----------- Light Assault Rifle Light Assault Rifle > --- INVENTORY -------- Ion Engine Light Treads Light Treads Aluminum Leg Aluminum Leg Medium Laser [Rating: 7] Favorites ----------- Power Ion Engine Engine Ion Engine Propulsion Compact Wheel Treads Light Treads Leg Aluminum Leg Wheel Compact Wheel Utility Medium Storage Unit Storage Medium Storage Unit Protection Core Shielding Weapon Light Assault Rifle Energy Gun Medium Laser Ballistic Gun Light Assault Rifle Build | -11 -10 ------- Run | Scr Mat Slots Evolved . | . . Power . | . . Propulsion . | . . Utility . | . . Weapon . | . . Parts Attached 25 | 6 19 Power 4 | 1 3 Engine 4 | 1 3 Core . | . . Reactor . | . . Propulsion 7 | 2 5 Treads 2 | . 2 Leg 3 | . 3 Wheel 2 | 2 . Hover . | . . Flight . | . . Utility 4 | 1 3 Device . | . . Storage 3 | 1 2 Processor . | . . Hackware . | . . Protection 1 | . 1 Artifact . | . . Weapon 10 | 2 8 Energy Gun 5 | . 5 Energy Cannon . | . . Ballistic Gun 5 | 2 3 Ballistic Cannon . | . . Launcher . | . . Special Weapon . | . . Impact Weapon . | . . Slashing Weapon . | . . Piercing Weapon . | . . Special Melee Weapon . | . . Unidentified Prototypes . | . . Parts Lost 7 | . 7 Power 3 | . 3 Propulsion 1 | . 1 Utility . | . . Weapon 3 | . 3 Highest Loss Streak 2 | . 2 Average Slot Usage (%) 97 | . 97 Engine 13 | . 13 Treads 7 | . 7 Leg 7 | . 7 Wheel 13 | . 13 Storage 18 | . 18 Protection 8 | . 8 Energy Gun 7 | . 7 Ballistic Gun 19 | . 19 Naked Turns . | . . Heaviest Build 19 | 9 19 Greatest Support 40 | 32 40 Greatest Overweight (x) 1 | . 1 Average Overweight (x) . | . . Largest Inventory Capacity 10 | 6 10 Average Capacity 8 | 5 8 Most Carried 9 | 6 9 Average Carried 6 | 4 6 Final Capacity 8 | 6 8 Final Carried 8 | 6 8 Class Distribution -------------------- 86% | Mutant 13% | Scavenger-Mutant Dominant Class ---------------- Mutant | -10/Materials Resources | -11 -10 ----------- Run | Scr Mat Matter Collected 584 | 186 398 Remotely . | . . Salvage Created 575 | . 575 Parts 24 | . 24 Haulers Intercepted . | . . Recyclers Shooed . | . . Parts Field Recycled . | . . Retrieved Matter . | . . Parts Self-Destructed . | . . Prevented . | . . Kills | -11 -10 ------- Run | Scr Mat Combat Hostiles Destroyed 16 | . 16 Guns 16 | . 16 Classes Destroyed 3 | . 3 Watcher 1 | . 1 Swarmer 4 | . 4 Grunt 12 | . 12 Best Kill Streak 3 | . 3 Combat Bots Only 3 | . 3 Max Kills in Single Turn 1 | . 1 Gunslinging . | . . Exploded . | . . Melee . | . . Uniques/NPCs Destroyed . | . . Combat | -11 -10 -------- Run | Scr Mat Damage Taken 1239 | . 1239 Core 251 | . 251 Absorbed by Shields . | . . Core Remaining (%) 100 | 100 . Volleys Fired 59 | . 59 Largest 2 | . 2 Hottest 80 | . 80 Shots Fired 117 | . 117 Gun 117 | . 117 Cannon . | . . Launcher . | . . Special . | . . Kinetic 88 | . 88 Thermal 21 | . 21 Explosive . | . . Electromagnetic 8 | . 8 Robot Hit Streak 9 | . 9 Robot Miss Streak 3 | . 3 Penetration Max . | . . Secondary Targets 3 | . 3 Max Gunslinging Chain 1 | . 1 Shots Hit Robots 82 | . 82 Core Hits 30 | . 30 Critical Hits . | . . Critical Kills . | . . Critical Parts Destroyed . | . . Melee Attacks . | . . Impact . | . . Slashing . | . . Piercing . | . . Sneak Attacks . | . . Combat Hostiles . | . . Follow-up Attacks . | . . Damage Inflicted 795 | . 795 Guns 795 | . 795 Cannons . | . . Explosions . | . . Melee . | . . Ramming . | . . Kinetic 556 | . 556 Thermal 158 | . 158 Explosive . | . . Electromagnetic 81 | . 81 Impact . | . . Slashing . | . . Piercing . | . . Highest Corruption 1 | . 1 Average Corruption 1 | . 1 Corruption Purged . | . . Effects 4 | . 4 Message Errors 3 | . 3 Targeting Errors 1 | . 1 Overload Shots . | . . Overflow Damage . | . . Projectiles . | . . Explosions . | . . Melee . | . . Knockbacks . | . . Impact . | . . Kinetic . | . . Secondary . | . . Self-Inflicted Damage . | . . Shots . | . . Rammed . | . . Targets Rammed . | . . Kicked . | . . Crushed . | . . Highest Temperature 63 | . 63 Average Temperature 14 | . 14 Received Heat Transfer 444 | . 444 Siege Activations . | . . Robots Corrupted . | . . Combat Hostiles . | . . Parts Fried 1 | . 1 Impact Corruptions . | . . Robots Melted . | . . Combat Hostiles . | . . Parts Melted . | . . Heat Transferred 410 | . 410 Parts Sabotaged . | . . Parts Stolen . | . . Parts Stripped . | . . Power Chain Reactions . | . . Missiles Intercepted . | . . Alert | -11 -10 ------- Run | Scr Mat Peak Influence 173 | . 173 Initial . | . . Average 74 | . 80 Maximum Alert Level . | . . Low Security (%) 100 | 100 100 Level 1 . | . . Level 2 . | . . Level 3 . | . . Level 4 . | . . Level 5 . | . . High Security . | . . Max Security . | . . Squads Dispatched 6 | . 6 Investigation 4 | . 4 Extermination . | . . Reinforcement 2 | . 2 Assault . | . . Garrison . | . . Intercept . | . . Construction Impeded . | . . Haulers Reinforced . | . . Stealth | -11 -10 --------- Run | Scr Mat Distress Signals 1 | . 1 Communications Jammed . | . . Distress Signals . | . . Times Spotted 30 | . 30 Peak Tracking Total 4 | . 4 Tactical Retreats 3 | . 3 Traps | -11 -10 ------- Run | Scr Mat Traps Triggered 3 | . 3 Indirectly . | . . Trap Hack Attempts . | . . Triggered . | . . Disarmed . | . . Reprogrammed . | . . Reused . | . . Traps Extracted . | . . Installed . | . . Triggered . | . . Machines | -11 -10 ---------- Run | Scr Mat Machines Disabled 1 | . 1 Max in Single Turn 1 | . 1 Machines Sabotaged . | . . Garrisons Compromised . | . . Overloaded Fab Kills . | . . Fab Network Shutdowns . | . . Hacking | -11 -10 --------- Run | Scr Mat Machines Accessed 5 | . 5 Terminals 4 | . 4 Fabricators . | . . Repair Stations . | . . Recycling Units 1 | . 1 Scanalyzers . | . . Garrison Access . | . . Total Hacks 19 | . 19 Successful 12 | . 12 Failed 7 | . 7 Catastrophic . | . . Database Lockouts . | . . Manual 18 | . 18 Terminals 18 | . 18 Fabricators . | . . Repair Stations . | . . Recycling Units 1 | . 1 Scanalyzers . | . . Garrison Access . | . . Terminal Hacks 6 | . 6 Record 1 | . 1 Prototype ID Bank 1 | . 1 Branch Access Points 1 | . 1 Terminal Index 2 | . 2 Zone Layout 1 | . 1 Fabricator Hacks . | . . Repair Station Hacks . | . . Recycling Unit Hacks . | . . Scanalyzer . | . . Garrison Access Hacks . | . . Unauthorized Hacks 6 | . 6 Terminals 5 | . 5 Track 1 | . 1 Assimilate 1 | . 1 Botnet 3 | . 3 Fabricators . | . . Repair Stations . | . . Recycling Units 1 | . 1 Recyclers 1 | . 1 Scanalyzers . | . . Garrison Access . | . . Data Cores Recovered . | . . Used . | . . Hacking Detections 3 | . 3 Full Trace Events 3 | . 3 Feedback Events 1 | . 1 Corruption 1 | . 1 Feedback Blocked . | . . Robot Schematics Acquired . | . . Robots Built . | . . Matter . | . . Time . | . . Total Robot Build Rating . | . . Part Schematics Acquired . | . . Parts Built . | . . Matter . | . . Time . | . . Total Part Build Rating . | . . Parts Repaired . | . . Time . | . . Parts Recycled . | . . Recycled Matter . | . . Retrieved Matter . | . . Retrieved Components . | . . Parts Scanalyzed . | . . Part Schematics Acquired . | . . Parts Damaged . | . . Bothacking | -11 -10 ------------ Run | Scr Mat Used RIF Installer . | . . Robots Hacked . | . . Non-combat . | . . Combat . | . . Robot Hacks Applied . | . . Relay Couplers Released . | . . Robots Rewired . | . . Allies Hacked . | . . Hacks Repelled . | . . Allies | -11 -10 -------- Run | Scr Mat Total Allies . | . . Largest Group . | . . Highest-Rated Group . | . . Highest-Rated Ally . | . . Total Orders . | . . Ally Attacks . | . . Total Damage . | . . Kills . | . . Allies Corrupted . | . . Allies Melted . | . . Intel | -11 -10 ------- Run | Scr Mat Robot Analysis Total . | . . Derelict Logs Recovered . | . . Drone Launches . | . . Drone Recoveries . | . . Exploration | -11 -10 ------------- Run | Scr Mat Turns Passed 1071 | 83 988 Spaces Moved 623 | 55 568 Core 5 | 5 . Treads 126 | . 126 Legs 130 | . 130 Wheels 362 | 50 312 Hover . | . . Flight . | . . Fastest Speed 50 | 50 100 Average Speed 115 | 95 117 Slowest Speed 160 | 100 160 Overloaded Moves . | . . Propulsion Burnouts . | . . Robots Hopped . | . . Cave-ins Triggered . | . . Exploration Rate (%) 42 | 4 80 Regions Visited 1 Branch Regions . Pre-discovered Areas . | . . Known Exits Taken . | . . Unknown Exits Taken 1 | 1 . Scrap Searched . | . . Spaces Dug . | . . Terrain Destroyed . | . . Melee . | . . Projectile . | . . AOE . | . . Terrain Rammed . | . . Walls Destroyed . | . . Machines Disabled . | . . Actions | -11 -10 --------- Run | Scr Mat Total 868 | 85 783 Wait 121 | 13 108 Move 622 | 54 568 Hop . | . . Pick Up 30 | 12 18 Fast Attach 2 | . 2 Attach 19 | 6 13 Detach . | . . Swap 4 | . 4 Drop 11 | . 11 Fire 59 | . 59 Melee . | . . Ram . | . . Kick . | . . Crush . | . . Escape Stasis . | . . Rewire . | . . Trap . | . . Miscellaneous . | . . Route ------- -11/Scrapyard -10/Materials (discovered 4 exits: [*Mat x2] / *Min x2) History --------- Turn | Location | Event 28 | -11/Scrapyard | Discovered new exit (range 13) 84 | -11/Scrapyard | Entered Materials 144 | -10/Materials | Discovered new exit (range 16) 211 | -10/Materials | Discovered new exit (range 15) 311 | -10/Materials | Build established: Mutant 397 | -10/Materials | Discovered new exit (range 16) 407 | -10/Materials | Core integrity fell below 50% 655 | -10/Materials | Core integrity fell below 20% 857 | -10/Materials | Discovered new exit (range 17) 857 | -10/Materials | Identified exit to Mines 1072 | -10/Materials | Destroyed by G-34 Mercenary with Small Laser Last Messages --------------- Dropped Com. Wheel. Acquired Aluminum Leg. U-05 Engineer builds a Door. Acquired 22 matter. Atomic Centrifuge disabled. EM Pulse Gun destroyed. Acquired EM Pulse Gun. G-34 Mercenary destroyed. Acquired 22 matter. Dropped Assault Rifle. Acquired 10 matter. Acquired Sml. Laser. Acquired EM Pulse Gun. K-01 Serf collects debris. WDC O%:=EI&EM> /V=#2 PRV|RG0D3YVZCNDK3CT K-01 Serf collects debris. W-16 Scout sends out distress signal. Hover Unit fried. W-16 Scout destroyed. Switching to secondary target: G-47 Trooper. Map ----- +----------------------------------------------------+ | ### # """ #???????????????? | | # """ #???????????????? | | > + """ #???????????????? | | # #???????????????? | | ### # #???????????????? | | ??### ###?! #???????????????? | | ????# #???######???????????????? | | ????# #????????????????????????? | | ????# #????????????????????????? | | ????# #????????????????????????? | | ????# #????????????????????????? | | ????# #????????????? ?????????? | | #####+##???????????? ???????? | | #???????????? ???????? | | !!! #???????????? ????????? | | !!! #???????????? ????????? | | !!! #???????#+### ????????? | | #????# ? ????????? | | #????# ?????????? | | #????# """ ?????????? | | #????# """ ?????????? | | ! #????#^ """ =#?######### | | ########????# #?# # | | ?????######## ###[ " # | | ?????# #* """ # | | ?????+ gg!@ "" # | | ?????# # """ # | | ???????????## ###+#### "" # | | ????????????????# ## """ # | | ????????????????# ## = """ # | | ????????????? # ## """ # | | ????????????# # """ ## " # | | ????????????+ #[""" ## ? | | ????????????# #% "" ########## | | ????????????# # #????????? | | ????????????# # #????????? | | ????????????# # #????????? | | ############# # #????????? | | # = #????????? | | # [ #????????? | | """ ###+###????????? | | ##### """ #?#%#?########## | | ????# """ #?# #?# # | | ????# #?# #?# """ # | | ##### ### ### """ # | | # """ # | | +% # | | #%""" ""# | | ########+###^ # """ T"# | | # # ^ # """ ""# | +----------------------------------------------------+ Best States ------------- Heat Dissipation 25 Energy Generation 10 Energy Capacity 250 Matter Stores 300 Matter Capacity 500 Sight Range 16 Terrain Scan Density 10 Core Shielding 20 Evasion (%) 40 Recoil Reduction 2 Item Schematics ----------------- None Robot Schematics ------------------ None Fabricated ------------ Nothing Alien Tech Used ----------------- None Achievements -------------- None Challenges ------------ None Game ------ Seed GaussMobileAmplifier Manual? 0 Play Time 00:18:33 Cumulative 8.0 hours Start 2020.09.15 @ 22:52:55 End 2020.09.15 @ 23:12:18 Sessions 1 Manual Loads 0 Difficulty Rogue Special Mode None Game No. 22 Rogue 22 Adventurer 0 Explorer 0 Win Type - Total 0 Types 0/0/0/0/0/0/0/0/0 Lore% 14 Gallery% 12 Achievement% 13 Wizard Run 0 Options --------- ASCII 0 Keyboard 0 Movement Mouse Keybinds 0 Fullscreen 2 Font 14/Dina Map View 84x54 Tactical HUD 0 Map Filters NONE Filters NONE Steam 1 RUN: 2d8595b9-fd80-4651-81b6-0b68499f70cb